[Event "*** SCC Grand Prix: Titled Tuesday Blitz"]
[Site "Chess.com"]
[Date "2020.10.06"]
[Round "2"]
[White "jamalm2"]
[Black "GMaka"]
[Result "0-1"]
[WhiteElo "1731"]
[BlackElo "2367"]
[TimeControl "180+1"]
[EndTime "10:17:35 PDT"]
[Termination "GMaka won on time"]

1. Nf3 {[%clk 0:02:59.4]} 1... Nf6 {[%clk 0:02:57]} 2. c4 {[%clk 0:02:53.4]}
2... e6 {[%clk 0:02:56.3]} 3. e3 {[%clk 0:02:52.3]} 3... d5 {[%clk 0:02:55.1]}
4. b3 {[%clk 0:02:51.6]} 4... Be7 {[%clk 0:02:53.3]} 5. Bb2 {[%clk 0:02:48.8]}
5... c5 {[%clk 0:02:53.2]} 6. Be2 {[%clk 0:02:46.9]} 6... Nc6 {[%clk 0:02:53.6]}
7. d4 {[%clk 0:02:45.9]} 7... O-O {[%clk 0:02:51.4]} 8. O-O {[%clk 0:02:45.3]}
8... dxc4 {[%clk 0:02:42.9]} 9. bxc4 {[%clk 0:02:42.2]} 9... b6 {[%clk
0:02:36.1]} 10. Nbd2 {[%clk 0:02:37.1]} 10... Bb7 {[%clk 0:02:35.6]} 11. Nb3
{[%clk 0:02:36.1]} 11... cxd4 {[%clk 0:02:33.7]} 12. exd4 {[%clk 0:02:35.9]}
12... Rc8 {[%clk 0:02:33.4]} 13. Rc1 {[%clk 0:02:31.4]} 13... a5 {[%clk
0:01:59.7]} 14. a4 {[%clk 0:02:27.9]} 14... Nb4 {[%clk 0:01:58.5]} 15. Ne5
{[%clk 0:02:19.4]} 15... Nd7 {[%clk 0:01:58.7]} 16. f4 {[%clk 0:02:13.6]} 16...
Bf6 {[%clk 0:01:58.6]} 17. Bf3 {[%clk 0:02:08.8]} 17... Bxf3 {[%clk 0:01:54.6]}
18. Qxf3 {[%clk 0:02:06.5]} 18... Qc7 {[%clk 0:01:46.6]} 19. Ng4 {[%clk
0:01:54.1]} 19... Rfd8 {[%clk 0:01:35.4]} 20. Nxf6+ {[%clk 0:01:50.4]} 20...
Nxf6 {[%clk 0:01:36.3]} 21. d5 {[%clk 0:01:48.1]} 21... Ne8 {[%clk 0:01:31.1]}
22. dxe6 {[%clk 0:01:41.2]} 22... Rd3 {[%clk 0:01:28.7]} 23. Qg4 {[%clk
0:01:39.3]} 23... Rxb3 {[%clk 0:01:24.1]} 24. exf7+ {[%clk 0:01:27.5]} 24...
Kxf7 {[%clk 0:01:25]} 25. Be5 {[%clk 0:01:19.7]} 25... Qc5+ {[%clk 0:01:24.8]}
26. Kh1 {[%clk 0:01:18.7]} 26... Rd3 {[%clk 0:01:15.4]} 27. Qf5+ {[%clk
0:01:14.7]} 27... Kg8 {[%clk 0:01:09.7]} 28. Qe6+ {[%clk 0:01:06.5]} 28... Kh8
{[%clk 0:01:08.1]} 29. Qf7 {[%clk 0:01:00.2]} 29... Rcd8 {[%clk 0:00:58.1]} 30.
Rce1 {[%clk 0:00:54.1]} 30... R3d7 {[%clk 0:00:56.2]} 31. Qh5 {[%clk 0:00:30.9]}
31... Nd3 {[%clk 0:00:47.5]} 32. Bxg7+ {[%clk 0:00:26.8]} 32... Nxg7 {[%clk
0:00:46.8]} 33. Qh4 {[%clk 0:00:16.9]} 33... Qf5 {[%clk 0:00:40.4]} 34. Re3
{[%clk 0:00:11.5]} 34... Nc5 {[%clk 0:00:39.4]} 35. Rfe1 {[%clk 0:00:09.3]}
35... Rd1 {[%clk 0:00:37.5]} 36. h3 {[%clk 0:00:01.4]} 36... Rxe1+ {[%clk
0:00:37.2]} 0-1

[Event "*** SCC Grand Prix: Titled Tuesday Blitz"]
[Site "Chess.com"]
[Date "2020.10.06"]
[Round "2"]
[White "Philosopherrr"]
[Black "Vuk2000"]
[Result "0-1"]
[WhiteElo "2472"]
[BlackElo "2702"]
[TimeControl "180+1"]
[EndTime "10:17:36 PDT"]
[Termination "Vuk2000 won by resignation"]

1. e4 {[%clk 0:02:59.8]} 1... e6 {[%clk 0:03:00.4]} 2. d4 {[%clk 0:02:59.3]}
2... d5 {[%clk 0:03:00.7]} 3. Nc3 {[%clk 0:02:58.2]} 3... Bb4 {[%clk 0:03:00.8]}
4. e5 {[%clk 0:02:57.8]} 4... c5 {[%clk 0:03:01.1]} 5. Bd2 {[%clk 0:02:58]} 5...
Ne7 {[%clk 0:03:00.2]} 6. a3 {[%clk 0:02:57.9]} 6... Bxc3 {[%clk 0:02:46]} 7.
Bxc3 {[%clk 0:02:55.5]} 7... Nbc6 {[%clk 0:02:45.6]} 8. Qg4 {[%clk 0:02:39.4]}
8... cxd4 {[%clk 0:02:44.7]} 9. Bxd4 {[%clk 0:02:37.4]} 9... h5 {[%clk
0:02:17.7]} 10. Qd1 {[%clk 0:02:33.4]} 10... Nxd4 {[%clk 0:02:16.3]} 11. Qxd4
{[%clk 0:02:33.1]} 11... Nc6 {[%clk 0:02:09.2]} 12. Qc5 {[%clk 0:02:27.3]} 12...
Nxe5 {[%clk 0:02:02.9]} 13. O-O-O {[%clk 0:02:18.9]} 13... Bd7 {[%clk
0:01:59.7]} 14. Qd4 {[%clk 0:02:14]} 14... Qf6 {[%clk 0:01:58.8]} 15. h3 {[%clk
0:02:02.4]} 15... Nc6 {[%clk 0:00:49]} 16. Qd2 {[%clk 0:02:01.7]} 16... Rc8
{[%clk 0:00:48.1]} 17. f4 {[%clk 0:01:58]} 17... Ne7 {[%clk 0:00:39.5]} 18. Nf3
{[%clk 0:01:55.8]} 18... Ng6 {[%clk 0:00:39.4]} 19. g3 {[%clk 0:01:50.1]} 19...
h4 {[%clk 0:00:39.6]} 20. Bd3 {[%clk 0:01:46.3]} 20... hxg3 {[%clk 0:00:35.6]}
21. Bxg6 {[%clk 0:01:46.1]} 21... Qxg6 {[%clk 0:00:36]} 22. Ne5 {[%clk
0:01:46.1]} 22... Qf5 {[%clk 0:00:34.1]} 23. Rhe1 {[%clk 0:01:32.4]} 23... Ba4
{[%clk 0:00:30.5]} 24. c3 {[%clk 0:01:17.1]} 24... Bxd1 {[%clk 0:00:28.3]} 25.
Rxd1 {[%clk 0:01:14.7]} 25... O-O {[%clk 0:00:25.3]} 26. Qe3 {[%clk 0:01:11.3]}
26... Qxh3 {[%clk 0:00:25]} 27. Rg1 {[%clk 0:01:10.6]} 27... d4 {[%clk
0:00:25.1]} 28. Qxg3 {[%clk 0:01:09.2]} 28... Qxg3 {[%clk 0:00:24.9]} 29. Rxg3
{[%clk 0:01:09.6]} 29... dxc3 {[%clk 0:00:25.2]} 30. bxc3 {[%clk 0:01:09.2]}
30... Rc7 {[%clk 0:00:25.6]} 31. Kb2 {[%clk 0:01:08.9]} 31... Rd8 {[%clk
0:00:25.7]} 32. Kc2 {[%clk 0:01:07.3]} 32... f6 {[%clk 0:00:25.8]} 33. Ng4
{[%clk 0:01:03.9]} 33... Kf7 {[%clk 0:00:26.2]} 34. Ne3 {[%clk 0:01:03]} 34...
Rdc8 {[%clk 0:00:25.7]} 35. Nd1 {[%clk 0:01:00.7]} 35... Rc4 {[%clk 0:00:25.9]}
36. Rf3 {[%clk 0:01:00.8]} 36... b5 {[%clk 0:00:23.1]} 37. Nb2 {[%clk
0:01:00.7]} 37... Re4 {[%clk 0:00:23]} 38. Nd3 {[%clk 0:01:00.9]} 38... Ra4
{[%clk 0:00:21.3]} 39. Kb3 {[%clk 0:01:00.7]} 39... a5 {[%clk 0:00:21]} 40. Nb2
{[%clk 0:01:00.3]} 40... Re4 {[%clk 0:00:19.3]} 41. f5 {[%clk 0:01:01.1]} 41...
a4+ {[%clk 0:00:18.7]} 42. Kc2 {[%clk 0:00:59.5]} 42... Re2+ {[%clk 0:00:19.2]}
43. Kb1 {[%clk 0:00:59.9]} 43... exf5 {[%clk 0:00:19.1]} 44. Rxf5 {[%clk
0:00:59.8]} 44... Rxc3 {[%clk 0:00:18.3]} 45. Rxb5 {[%clk 0:01:00.5]} 45... Rb3
{[%clk 0:00:17.8]} 46. Rxb3 {[%clk 0:01:00.2]} 46... axb3 {[%clk 0:00:18.7]} 47.
Nc4 {[%clk 0:00:58.5]} 47... g5 {[%clk 0:00:17.8]} 48. a4 {[%clk 0:00:58.6]}
48... g4 {[%clk 0:00:18.1]} 49. a5 {[%clk 0:00:59.2]} 49... g3 {[%clk
0:00:17.2]} 50. a6 {[%clk 0:00:59.5]} 50... g2 {[%clk 0:00:17.7]} 51. Nd6+
{[%clk 0:00:59.8]} 51... Ke6 {[%clk 0:00:17.3]} 0-1

[Event "*** SCC Grand Prix: Titled Tuesday Blitz"]
[Site "Chess.com"]
[Date "2020.10.06"]
[Round "2"]
[White "besarquis"]
[Black "markberk"]
[Result "1/2-1/2"]
[WhiteElo "2165"]
[BlackElo "2394"]
[TimeControl "180+1"]
[EndTime "10:17:36 PDT"]
[Termination "Game drawn by repetition"]

1. e4 {[%clk 0:03:00.9]} 1... e5 {[%clk 0:02:58.5]} 2. Nf3 {[%clk 0:03:00.4]}
2... Nc6 {[%clk 0:02:57.2]} 3. Bc4 {[%clk 0:03:00.4]} 3... Nf6 {[%clk
0:02:55.9]} 4. d3 {[%clk 0:02:59.5]} 4... h6 {[%clk 0:02:55.2]} 5. c3 {[%clk
0:02:58.6]} 5... Be7 {[%clk 0:02:53.3]} 6. Nbd2 {[%clk 0:02:57.1]} 6... d6
{[%clk 0:02:46.7]} 7. Bb3 {[%clk 0:02:56.7]} 7... O-O {[%clk 0:02:44.5]} 8. h3
{[%clk 0:02:54.7]} 8... Be6 {[%clk 0:02:39.8]} 9. Bc2 {[%clk 0:02:54.3]} 9... d5
{[%clk 0:02:30.8]} 10. Qe2 {[%clk 0:02:53.6]} 10... Re8 {[%clk 0:02:17.4]} 11.
O-O {[%clk 0:02:52.7]} 11... d4 {[%clk 0:01:59.7]} 12. Re1 {[%clk 0:02:49.4]}
12... a5 {[%clk 0:01:53.5]} 13. a4 {[%clk 0:02:47.1]} 13... Bc5 {[%clk
0:01:45.3]} 14. Nf1 {[%clk 0:02:46.2]} 14... Qd6 {[%clk 0:01:30.8]} 15. Ng3
{[%clk 0:02:45]} 15... Rad8 {[%clk 0:01:25.9]} 16. Nh4 {[%clk 0:02:43]} 16...
Ne7 {[%clk 0:01:17.6]} 17. Qf3 {[%clk 0:02:40.1]} 17... Bc8 {[%clk 0:00:51.9]}
18. Nhf5 {[%clk 0:02:34.7]} 18... Nxf5 {[%clk 0:00:50.6]} 19. Nxf5 {[%clk
0:02:34.7]} 19... Bxf5 {[%clk 0:00:50.1]} 20. Qxf5 {[%clk 0:02:30.7]} 20... Qe6
{[%clk 0:00:49.4]} 21. Qf3 {[%clk 0:02:28.4]} 21... Rd6 {[%clk 0:00:46.3]} 22.
Bd2 {[%clk 0:02:09.2]} 22... Nh7 {[%clk 0:00:42]} 23. h4 {[%clk 0:01:53.1]}
23... Qe7 {[%clk 0:00:34.2]} 24. g3 {[%clk 0:01:51.3]} 24... dxc3 {[%clk
0:00:29.1]} 25. bxc3 {[%clk 0:01:50.6]} 25... Rf6 {[%clk 0:00:28.9]} 26. Qg2
{[%clk 0:01:34.6]} 26... Rxf2 {[%clk 0:00:27.5]} 27. Qxf2 {[%clk 0:01:35]} 27...
Bxf2+ {[%clk 0:00:27.3]} 28. Kxf2 {[%clk 0:01:35.7]} 28... Nf6 {[%clk
0:00:24.2]} 29. Rab1 {[%clk 0:01:35.3]} 29... Ng4+ {[%clk 0:00:22.7]} 30. Kg2
{[%clk 0:01:35.5]} 30... b6 {[%clk 0:00:20]} 31. Rb5 {[%clk 0:01:31.4]} 31...
Qd6 {[%clk 0:00:14.4]} 32. Rf1 {[%clk 0:01:27.9]} 32... Nf6 {[%clk 0:00:12.7]}
33. Bc1 {[%clk 0:01:18]} 33... Re7 {[%clk 0:00:11.2]} 34. Rf3 {[%clk 0:01:17.7]}
34... Qc6 {[%clk 0:00:10.4]} 35. Bd2 {[%clk 0:01:09.5]} 35... Nd7 {[%clk
0:00:09.2]} 36. Rf5 {[%clk 0:00:43.9]} 36... Nf6 {[%clk 0:00:08.6]} 37. Rf3
{[%clk 0:00:43.2]} 37... Rd7 {[%clk 0:00:07.7]} 38. Be1 {[%clk 0:00:39.9]} 38...
Qd6 {[%clk 0:00:06.7]} 39. Rb3 {[%clk 0:00:35.7]} 39... Qc6 {[%clk 0:00:05.8]}
40. Rb5 {[%clk 0:00:35.2]} 40... Qd6 {[%clk 0:00:05.8]} 41. Rb3 {[%clk
0:00:35.3]} 41... Qc6 {[%clk 0:00:05.9]} 42. Rb5 {[%clk 0:00:35.5]} 1/2-1/2

[Event "*** SCC Grand Prix: Titled Tuesday Blitz"]
[Site "Chess.com"]
[Date "2020.10.06"]
[Round "2"]
[White "Alexandercs432"]
[Black "flexova"]
[Result "1-0"]
[WhiteElo "2147"]
[BlackElo "2346"]
[TimeControl "180+1"]
[EndTime "10:17:36 PDT"]
[Termination "Alexandercs432 won by resignation"]

1. e4 {[%clk 0:03:00.9]} 1... e6 {[%clk 0:02:59.6]} 2. d4 {[%clk 0:03:00]} 2...
d5 {[%clk 0:03:00.2]} 3. Nd2 {[%clk 0:03:00.3]} 3... c5 {[%clk 0:02:58.9]} 4.
exd5 {[%clk 0:02:59.5]} 4... exd5 {[%clk 0:02:57.7]} 5. Ngf3 {[%clk 0:02:59.8]}
5... Nc6 {[%clk 0:02:54.9]} 6. Bb5 {[%clk 0:02:59.8]} 6... Qe7+ {[%clk
0:02:52.7]} 7. Qe2 {[%clk 0:02:48.8]} 7... Qxe2+ {[%clk 0:02:51.7]} 8. Kxe2
{[%clk 0:02:49.3]} 8... Nf6 {[%clk 0:02:50.1]} 9. dxc5 {[%clk 0:02:38.7]} 9...
Bxc5 {[%clk 0:02:48.5]} 10. Nb3 {[%clk 0:02:32.2]} 10... Bb6 {[%clk 0:02:48.5]}
11. c3 {[%clk 0:02:12.9]} 11... O-O {[%clk 0:02:44.4]} 12. Re1 {[%clk
0:02:13.3]} 12... Bg4 {[%clk 0:02:42.1]} 13. Be3 {[%clk 0:01:54.3]} 13... Bxe3
{[%clk 0:02:29.6]} 14. Kxe3 {[%clk 0:01:41.9]} 14... Rfe8+ {[%clk 0:02:24.1]}
15. Kd2 {[%clk 0:01:03.3]} 15... Bxf3 {[%clk 0:02:21.2]} 16. gxf3 {[%clk
0:01:04.2]} 16... a6 {[%clk 0:02:08.2]} 17. Bxc6 {[%clk 0:00:47.5]} 17... bxc6
{[%clk 0:02:09.1]} 18. Rxe8+ {[%clk 0:00:47.2]} 18... Nxe8 {[%clk 0:01:55.5]}
19. Re1 {[%clk 0:00:42.3]} 19... Nd6 {[%clk 0:01:55.1]} 20. Na5 {[%clk
0:00:33.6]} 20... c5 {[%clk 0:01:30]} 21. Re7 {[%clk 0:00:29]} 21... d4 {[%clk
0:01:09.4]} 22. Rd7 {[%clk 0:00:19.8]} 22... dxc3+ {[%clk 0:01:05.4]} 23. Kxc3
{[%clk 0:00:20.7]} 23... Nf5 {[%clk 0:00:59.1]} 24. Rd5 {[%clk 0:00:14.9]} 24...
Nd4 {[%clk 0:00:57.8]} 25. Rxc5 {[%clk 0:00:12.7]} 25... Nxf3 {[%clk 0:00:58.5]}
26. Rc7 {[%clk 0:00:10.6]} 26... Kf8 {[%clk 0:00:57.9]} 27. b4 {[%clk
0:00:08.3]} 27... Nxh2 {[%clk 0:00:50.1]} 28. a4 {[%clk 0:00:08.5]} 28... h5
{[%clk 0:00:50.2]} 29. Nc6 {[%clk 0:00:07.6]} 29... Ng4 {[%clk 0:00:48.8]} 30.
b5 {[%clk 0:00:06.4]} 30... axb5 {[%clk 0:00:46.3]} 31. axb5 {[%clk 0:00:07.3]}
31... h4 {[%clk 0:00:46.3]} 32. b6 {[%clk 0:00:07.7]} 32... h3 {[%clk
0:00:43.8]} 33. b7 {[%clk 0:00:08.2]} 33... Re8 {[%clk 0:00:34.4]} 34. Rc8
{[%clk 0:00:07.9]} 34... Nf6 {[%clk 0:00:20.2]} 35. Rxe8+ {[%clk 0:00:07]} 35...
Nxe8 {[%clk 0:00:21.1]} 36. b8=Q {[%clk 0:00:07.3]} 36... h2 {[%clk 0:00:21.8]}
37. Qxh2 {[%clk 0:00:07.7]} 1-0

[Event "*** SCC Grand Prix: Titled Tuesday Blitz"]
[Site "Chess.com"]
[Date "2020.10.06"]
[Round "2"]
[White "Sibelephant"]
[Black "Matveev_Vladimir"]
[Result "1-0"]
[WhiteElo "3103"]
[BlackElo "2613"]
[TimeControl "180+1"]
[EndTime "10:17:37 PDT"]
[Termination "Sibelephant won by resignation"]

1. d4 {[%clk 0:02:59.7]} 1... Nf6 {[%clk 0:02:59.3]} 2. Nf3 {[%clk 0:02:59.1]}
2... g6 {[%clk 0:02:59.4]} 3. Bg5 {[%clk 0:02:58.7]} 3... Bg7 {[%clk 0:02:59.3]}
4. Nbd2 {[%clk 0:02:59]} 4... d6 {[%clk 0:02:57.9]} 5. e3 {[%clk 0:02:58.9]}
5... h6 {[%clk 0:02:55.6]} 6. Bh4 {[%clk 0:02:58.6]} 6... g5 {[%clk 0:02:55.7]}
7. Bg3 {[%clk 0:02:58.5]} 7... Nh5 {[%clk 0:02:55.9]} 8. Bd3 {[%clk 0:02:58.1]}
8... e6 {[%clk 0:02:55.2]} 9. c3 {[%clk 0:02:53.8]} 9... O-O {[%clk 0:02:45]}
10. Qe2 {[%clk 0:02:36.7]} 10... f5 {[%clk 0:02:43.9]} 11. O-O-O {[%clk
0:02:36.7]} 11... a6 {[%clk 0:02:33.3]} 12. h3 {[%clk 0:02:34.6]} 12... Nxg3
{[%clk 0:02:28.9]} 13. fxg3 {[%clk 0:02:35]} 13... b5 {[%clk 0:02:28.9]} 14. e4
{[%clk 0:02:24.7]} 14... c5 {[%clk 0:01:58.6]} 15. exf5 {[%clk 0:02:18.3]} 15...
exf5 {[%clk 0:01:57.4]} 16. dxc5 {[%clk 0:02:17.8]} 16... dxc5 {[%clk
0:01:58.3]} 17. Rhe1 {[%clk 0:02:01.8]} 17... Nc6 {[%clk 0:01:50.2]} 18. g4
{[%clk 0:01:56.6]} 18... b4 {[%clk 0:01:31.7]} 19. Bxf5 {[%clk 0:01:20.1]} 19...
bxc3 {[%clk 0:01:24.2]} 20. bxc3 {[%clk 0:01:20.4]} 20... Qa5 {[%clk 0:01:18.6]}
21. Ne4 {[%clk 0:00:46]} 21... Rb8 {[%clk 0:01:05.7]} 22. Qc4+ {[%clk
0:00:45.7]} 22... Kh8 {[%clk 0:01:05]} 23. Rd2 {[%clk 0:00:42.9]} 23... Qa3+
{[%clk 0:00:49.4]} 24. Kd1 {[%clk 0:00:42.8]} 24... Rb1+ {[%clk 0:00:43.2]} 25.
Ke2 {[%clk 0:00:42.6]} 25... Rxe1+ {[%clk 0:00:44.1]} 26. Kxe1 {[%clk
0:00:41.4]} 26... Qc1+ {[%clk 0:00:30.2]} 27. Ke2 {[%clk 0:00:27]} 27... Qh1
{[%clk 0:00:15.4]} 28. Kf2 {[%clk 0:00:21.7]} 28... Bxf5 {[%clk 0:00:13.5]} 29.
gxf5 {[%clk 0:00:22.6]} 29... Ne5 {[%clk 0:00:11.5]} 30. Nxe5 {[%clk 0:00:19.5]}
30... Bxe5 {[%clk 0:00:12.4]} 31. Qe6 {[%clk 0:00:19.4]} 31... Bf4 {[%clk
0:00:10.3]} 32. Qxh6+ {[%clk 0:00:18.5]} 32... Kg8 {[%clk 0:00:10.7]} 33. Nf6+
{[%clk 0:00:14.3]} 1-0

[Event "*** SCC Grand Prix: Titled Tuesday Blitz"]
[Site "Chess.com"]
[Date "2020.10.06"]
[Round "2"]
[White "FMalexhdez"]
[Black "sorito"]
[Result "0-1"]
[WhiteElo "2256"]
[BlackElo "2459"]
[TimeControl "180+1"]
[EndTime "10:17:40 PDT"]
[Termination "sorito won by resignation"]

1. e4 {[%clk 0:03:00.9]} 1... c5 {[%clk 0:02:50.2]} 2. Nf3 {[%clk 0:03:00.2]}
2... a6 {[%clk 0:02:50]} 3. d4 {[%clk 0:02:59.9]} 3... cxd4 {[%clk 0:02:49.9]}
4. Nxd4 {[%clk 0:03:00.1]} 4... e6 {[%clk 0:02:46.5]} 5. c4 {[%clk 0:02:59.7]}
5... b6 {[%clk 0:02:45.2]} 6. Nc3 {[%clk 0:02:57.4]} 6... Bb7 {[%clk 0:02:45.7]}
7. Be2 {[%clk 0:02:51.5]} 7... d6 {[%clk 0:02:45.8]} 8. O-O {[%clk 0:02:50.5]}
8... Nd7 {[%clk 0:02:46.4]} 9. b3 {[%clk 0:02:36.5]} 9... Ngf6 {[%clk
0:02:46.3]} 10. f3 {[%clk 0:02:36.5]} 10... Rc8 {[%clk 0:02:44.6]} 11. Bb2
{[%clk 0:02:34.5]} 11... Qc7 {[%clk 0:02:44.9]} 12. Rc1 {[%clk 0:02:29.7]} 12...
Qb8 {[%clk 0:02:45.2]} 13. Nc2 {[%clk 0:02:27.5]} 13... Be7 {[%clk 0:02:43.1]}
14. Ne3 {[%clk 0:02:27.2]} 14... O-O {[%clk 0:02:42.4]} 15. Kh1 {[%clk
0:02:26.8]} 15... Bd8 {[%clk 0:02:42.4]} 16. Qd2 {[%clk 0:02:16.7]} 16... Bc7
{[%clk 0:02:42.4]} 17. g4 {[%clk 0:01:57.5]} 17... Rfd8 {[%clk 0:02:41.9]} 18.
g5 {[%clk 0:01:57.4]} 18... Ne8 {[%clk 0:02:33.3]} 19. f4 {[%clk 0:01:57.4]}
19... d5 {[%clk 0:02:16.4]} 20. cxd5 {[%clk 0:01:37.6]} 20... Bxf4 {[%clk
0:02:13.6]} 21. Rf2 {[%clk 0:01:22.3]} 21... exd5 {[%clk 0:02:03.2]} 22. Rcf1
{[%clk 0:01:14.2]} 22... Bxe3 {[%clk 0:01:11]} 23. Qxe3 {[%clk 0:01:13.2]} 23...
Ne5 {[%clk 0:01:00.1]} 24. Nxd5 {[%clk 0:01:10.2]} 24... Rxd5 {[%clk 0:00:59.7]}
25. exd5 {[%clk 0:01:02]} 25... Bxd5+ {[%clk 0:00:59.1]} 26. Kg1 {[%clk
0:01:02]} 26... Ng6 {[%clk 0:00:56.2]} 27. Bf3 {[%clk 0:00:53.6]} 27... Be6
{[%clk 0:00:55.9]} 28. Be4 {[%clk 0:00:49.1]} 28... Rc5 {[%clk 0:00:53.9]} 29.
Bxg6 {[%clk 0:00:48]} 29... hxg6 {[%clk 0:00:53.6]} 30. Bd4 {[%clk 0:00:47.3]}
30... Rd5 {[%clk 0:00:50.7]} 31. Bxb6 {[%clk 0:00:34.3]} 31... Qd6 {[%clk
0:00:50.8]} 32. Ba7 {[%clk 0:00:25.8]} 32... Rd3 {[%clk 0:00:50.6]} 33. Qf4
{[%clk 0:00:23.7]} 33... Qd7 {[%clk 0:00:46.8]} 34. Be3 {[%clk 0:00:23]} 34...
Rd5 {[%clk 0:00:46.7]} 35. Qg3 {[%clk 0:00:21.4]} 35... Nd6 {[%clk 0:00:45.4]}
36. h3 {[%clk 0:00:19.5]} 36... Nf5 {[%clk 0:00:44.5]} 37. Qb8+ {[%clk
0:00:18.1]} 37... Kh7 {[%clk 0:00:44.5]} 38. Rf4 {[%clk 0:00:17]} 38... Rd3
{[%clk 0:00:41]} 39. Qa7 {[%clk 0:00:13.9]} 39... Rxe3 {[%clk 0:00:29]} 40. Qxd7
{[%clk 0:00:08.9]} 40... Bxd7 {[%clk 0:00:28.8]} 41. Ra4 {[%clk 0:00:07.3]}
41... Bxa4 {[%clk 0:00:27.8]} 0-1

[Event "*** SCC Grand Prix: Titled Tuesday Blitz"]
[Site "Chess.com"]
[Date "2020.10.06"]
[Round "2"]
[White "gixfantastix"]
[Black "Viaje"]
[Result "0-1"]
[WhiteElo "2075"]
[BlackElo "2388"]
[TimeControl "180+1"]
[EndTime "10:17:40 PDT"]
[Termination "Viaje won on time"]

1. e4 {[%clk 0:03:00.9]} 1... c5 {[%clk 0:02:59.7]} 2. Nc3 {[%clk 0:03:00.2]}
2... a6 {[%clk 0:02:58.8]} 3. g4 {[%clk 0:02:59.2]} 3... b5 {[%clk 0:02:57]} 4.
Bg2 {[%clk 0:02:58.1]} 4... Bb7 {[%clk 0:02:57]} 5. d3 {[%clk 0:02:57.9]} 5...
e6 {[%clk 0:02:57.2]} 6. Be3 {[%clk 0:02:56.3]} 6... b4 {[%clk 0:02:54.5]} 7.
Nce2 {[%clk 0:02:55.4]} 7... d5 {[%clk 0:02:54.7]} 8. exd5 {[%clk 0:02:48.8]}
8... Nf6 {[%clk 0:02:54.2]} 9. g5 {[%clk 0:02:38.3]} 9... Nxd5 {[%clk 0:02:54]}
10. Qd2 {[%clk 0:02:34.6]} 10... Nc6 {[%clk 0:02:48.8]} 11. O-O-O {[%clk
0:02:30.6]} 11... Be7 {[%clk 0:02:44]} 12. h4 {[%clk 0:02:29.6]} 12... b3 {[%clk
0:02:13.4]} 13. axb3 {[%clk 0:02:23.8]} 13... Ncb4 {[%clk 0:02:13.3]} 14. Kb1
{[%clk 0:02:21.8]} 14... Qa5 {[%clk 0:02:12.4]} 15. Nc1 {[%clk 0:02:21.4]} 15...
O-O {[%clk 0:01:44.4]} 16. Nge2 {[%clk 0:02:14.5]} 16... Nxe3 {[%clk 0:01:41.1]}
17. Bxb7 {[%clk 0:02:13.2]} 17... Nexc2 {[%clk 0:01:40.9]} 18. Qxc2 {[%clk
0:01:58.6]} 18... Nxc2 {[%clk 0:01:41]} 19. Kxc2 {[%clk 0:01:59.5]} 19... Rab8
{[%clk 0:01:37.7]} 20. Be4 {[%clk 0:01:54.4]} 20... f5 {[%clk 0:01:36.5]} 21.
gxf6 {[%clk 0:01:53.1]} 21... Bxf6 {[%clk 0:01:36.3]} 22. f3 {[%clk 0:01:52.3]}
22... Qa1 {[%clk 0:01:28.8]} 23. Nc3 {[%clk 0:01:48]} 23... Qa5 {[%clk
0:01:08.5]} 24. h5 {[%clk 0:01:44.5]} 24... Rfc8 {[%clk 0:01:06.5]} 25. Rhg1
{[%clk 0:01:39.5]} 25... Rd8 {[%clk 0:00:59.1]} 26. Rg4 {[%clk 0:01:32.1]} 26...
c4 {[%clk 0:00:58]} 27. dxc4 {[%clk 0:01:09.6]} 27... Rxd1 {[%clk 0:00:56.7]}
28. Nxd1 {[%clk 0:01:10.5]} 28... Qxh5 {[%clk 0:00:55.1]} 29. Nd3 {[%clk
0:00:59.1]} 29... Qh2+ {[%clk 0:00:53.4]} 30. Kc1 {[%clk 0:00:54.9]} 30... Rd8
{[%clk 0:00:49.9]} 31. N1f2 {[%clk 0:00:11.2]} 31... Bd4 {[%clk 0:00:42.8]} 32.
Nd1 {[%clk 0:00:09.8]} 32... Qe2 {[%clk 0:00:36.3]} 33. Rh4 {[%clk 0:00:08.1]}
33... Be3+ {[%clk 0:00:33.7]} 34. Nxe3 {[%clk 0:00:07.7]} 34... Qxe3+ {[%clk
0:00:34.6]} 35. Kc2 {[%clk 0:00:08.3]} 35... Qe2+ {[%clk 0:00:32.2]} 36. Kc3
{[%clk 0:00:07.1]} 36... Rxd3+ {[%clk 0:00:32.2]} 37. Bxd3 {[%clk 0:00:05.3]}
37... Qe1+ {[%clk 0:00:32.3]} 38. Kc2 {[%clk 0:00:04.5]} 38... Qxh4 {[%clk
0:00:32.8]} 39. b4 {[%clk 0:00:04.5]} 39... Qd4 {[%clk 0:00:32.3]} 40. Be2
{[%clk 0:00:03.1]} 40... h5 {[%clk 0:00:31.8]} 0-1